Cogmind - Beta 14 @@@ ROGUE MODE // 2024.09.29 @ 17:57:13 Player: Wintermute Result: Destroyed by Autobeam Turret with Autobeam Performance ------------- Evolutions (0) 0 Regions Visited (2) 400 Robots Destroyed (34) 170 Value Destroyed (816) 816 Prototype IDs (0) 0 Alien Tech Used (0) 0 Bonus (0) 0 TOTAL SCORE: 1386 Bonus ------- None Cogmind --------- Core Integrity 0/250 Matter 101/300 Energy 250/250 System Corruption 0% Temperature Cool (6) Movement Walking (120) Location -10/Subcaves Parts ------- > --- POWER (1) -------- Ion Engine > --- PROPULSION (2) --- Aluminum Leg Aluminum Leg > --- UTILITY (2) ------ Small Storage Unit Makeshift Light Armor Plating > --- WEAPON (2) ------- Battle Cannon > --- INVENTORY (8) ---- Subdweller Power Source Makeshift Light Armor Plating Subdweller Laser Makeshift Laser Assault Rifle Assault Rifle Subdweller Machine Gun Scrap Shield Fragment (49) Peak State ------------ > --- POWER ------------ Ion Engine > --- PROPULSION ------- Aluminum Leg Makeshift Leg > --- UTILITY ---------- Small Storage Unit Makeshift Light Armor Plating > --- WEAPON ----------- Makeshift Laser Subdweller Machine Gun > --- INVENTORY -------- Aluminum Leg Aluminum Leg Heat Sink Subdweller Laser Assault Rifle Assault Rifle Grenade Launcher Scrap Shield Fragment [Rating: 18] Favorites ----------- Power Ion Engine Engine Ion Engine Propulsion Aluminum Leg Leg Aluminum Leg Utility Small Storage Unit Device Structural Scanner Storage Small Storage Unit Protection Makeshift Light Armor Plating Weapon Assault Rifle Energy Gun Makeshift Laser Ballistic Gun Assault Rifle Ballistic Cannon Battle Cannon Launcher Grenade Launcher Build | -11 -10 -10 ------- Run | Yrd Mat Sub Slots Evolved . | . . . Power . | . . . Propulsion . | . . . Utility . | . . . Weapon . | . . . Parts Attached 41 | 7 16 18 Power 6 | 1 3 2 Engine 6 | 1 3 2 Core . | . . . Reactor . | . . . Propulsion 11 | 2 5 4 Treads . | . . . Leg 11 | 2 5 4 Wheel . | . . . Hover . | . . . Flight . | . . . Utility 7 | 2 3 2 Device 4 | 1 2 1 Storage 2 | 1 1 . Processor . | . . . Hackware . | . . . Protection 1 | . . 1 Artifact . | . . . Weapon 17 | 2 5 10 Energy Gun 2 | . . 2 Energy Cannon . | . . . Ballistic Gun 10 | 2 4 4 Ballistic Cannon 1 | . . 1 Launcher 4 | . 1 3 Special Weapon . | . . . Impact Weapon . | . . . Slashing Weapon . | . . . Piercing Weapon . | . . . Special Melee Weapon . | . . . Unidentified Prototypes . | . . . Parts Lost 7 | . 2 5 Power 1 | . . 1 Propulsion 3 | . 1 2 Utility 2 | . 1 1 Weapon 1 | . . 1 Highest Loss Streak 2 | . 1 2 To Critical Strikes . | . . . Average Slot Usage (%) 97 | . 99 96 Engine 13 | . 14 13 Leg 27 | . 27 27 Device 5 | . 13 1 Storage 14 | . 14 14 Protection 6 | . . 8 Energy Gun 7 | . . 10 Ballistic Gun 12 | . 27 5 Ballistic Cannon 6 | . . 8 Launcher 2 | . . 2 Peak Build Rating 18 | 7 7 18 Average Rating 11 | 6 6 14 On Entrance 4 | . 7 6 Naked Turns . | . . . Heaviest Build 21 | 14 16 21 Greatest Support 30 | 20 20 30 Greatest Overweight (x) 1 | 1 1 1 Average Overweight (x) . | . . . Largest Inventory Capacity 8 | 8 8 8 Average Capacity 7 | 7 8 8 Most Carried 8 | 4 8 8 Average Carried 7 | 3 7 7 Final Capacity 8 | 8 8 8 Final Carried 8 | 4 8 8 Class Distribution -------------------- 51% | Mutant 25% | Derelict-Mutant 22% | Scavenger-Mutant Dominant Class ---------------- Scavenger-Mutant | -10/Materials Mutant | -10/Subcaves Resources | -11 -10 -10 ----------- Run | Yrd Mat Sub Matter Collected 1212 | 297 493 422 Remotely . | . . . Salvage Created 972 | 200 458 314 Parts 74 | 18 30 26 Haulers Intercepted 1 | . 1 . Recyclers Shooed 2 | 1 1 . Parts Field Recycled . | . . . Retrieved Matter . | . . . Parts Self-Destructed 15 | . . 15 Prevented . | . . . Kills | -11 -10 -10 ------- Run | Yrd Mat Sub Combat Hostiles Destroyed 23 | . 9 14 Guns 17 | . 9 8 Cannons 3 | . . 3 AOE 3 | . . 3 Classes Destroyed 9 | 3 3 3 Worker 2 | 2 . . Builder 1 | . 1 . Tunneler 6 | 5 1 . Hauler 1 | . 1 . Recycler 1 | 1 . . Swarmer 4 | . . 4 Grunt 12 | . 9 3 Sentry 1 | . . 1 Subdweller 6 | . . 6 Best Kill Streak 6 | 5 6 4 Combat Bots Only 6 | . 6 4 Max Kills in Single Turn 1 | 1 1 1 Gunslinging . | . . . Exploded 1 | . . 1 Melee . | . . . Uniques/NPCs Destroyed . | . . . Combat | -11 -10 -10 -------- Run | Yrd Mat Sub Hostile Shots Fired 143 | . 64 79 Missed 43 | . 17 26 Damage Taken 1626 | . 587 1039 Core 253 | . 48 205 Absorbed by Shields . | . . . Regen/Repaired (Parts) 63 | . 63 . Core Remaining (%) 100 | 100 . . Volleys Fired 149 | 43 53 53 Largest 2 | 2 2 2 Hottest 90 | 40 50 90 Shots Fired 292 | 86 106 100 Gun 246 | 86 103 57 Cannon 26 | . . 26 Launcher 20 | . 3 17 Special . | . . . Kinetic 241 | 86 103 52 Thermal 31 | . . 31 Explosive 20 | . 3 17 Electromagnetic . | . . . Robot Hit Streak 15 | 7 7 15 Robot Miss Streak 4 | 4 4 2 Penetration Max . | . . . Secondary Targets 1 | . 1 . Max Gunslinging Chain 1 | . 1 . Shots Hit Robots 150 | 30 60 60 Core Hits 60 | 14 23 23 Critical Kills 1 | . 1 . Critical Parts Destroyed . | . . . Critical Strikes 3 | . 1 2 Destroy 1 | . 1 . Blast 2 | . . 2 Melee Attacks . | . . . Impact . | . . . Slashing . | . . . Piercing . | . . . Sneak Attacks . | . . . Combat Hostiles . | . . . Follow-up Attacks . | . . . Damage Inflicted 2523 | 314 819 1390 Guns 1720 | 314 753 653 Cannons 321 | . . 321 Explosions 433 | . 26 407 Melee . | . . . Ramming 49 | . 40 9 Kinetic 1657 | 314 753 590 Thermal 384 | . . 384 Explosive 433 | . 26 407 Electromagnetic . | . . . Impact . | . . . Slashing . | . . . Piercing . | . . . Highest Corruption . | . . . Average Corruption . | . . . Corruption Purged . | . . . Corruption Blocked . | . . . Overload Shots . | . . . Overflow Damage 19 | . . 19 Projectiles 1 | . . 1 Explosions 18 | . . 18 Melee . | . . . Knockbacks 5 | . . 5 Impact . | . . . Kinetic 5 | . . 5 Secondary . | . . . Self-Inflicted Damage 41 | . 18 23 Shots 5 | . 2 3 Rammed . | . . . Targets Rammed 13 | . 9 4 Kicked 13 | . 9 4 Crushed . | . . . Highest Temperature 219 | . 5 219 Average Temperature 64 | . 3 94 Received Heat Transfer 847 | . 300 547 Siege Activations . | . . . Robots Corrupted . | . . . Combat Hostiles . | . . . Parts Fried . | . . . Impact Corruptions . | . . . Robots Melted . | . . . Combat Hostiles . | . . . Parts Melted . | . . . Heat Transferred 851 | . . 851 Parts Sabotaged . | . . . Parts Stolen . | . . . Parts Stripped . | . . . Power Chain Reactions . | . . . Alert | -11 -10 -10 ------- Run | Yrd Mat Sub Peak Influence 244 | 40 244 . Initial 26 | . 26 . Average 96 | 21 121 . Maximum Alert Level 1 | . 1 . Low Security (%) 84 | 100 78 . Level 1 15 | . 21 . Level 2 . | . . . Level 3 . | . . . Level 4 . | . . . Level 5 . | . . . High Security . | . . . Max Security . | . . . Squads Dispatched 3 | . 3 . Investigation 1 | . 1 . Extermination . | . . . Reinforcement 2 | . 2 . Assault . | . . . Garrison . | . . . Intercept . | . . . Searches Triggered . | . . . Construction Impeded . | . . . Haulers Reinforced . | . . . Active Scanning Responses . | . . . Cargo Convoy Interrupts . | . . . Stealth | -11 -10 -10 --------- Run | Yrd Mat Sub Distress Signals . | . . . Communications Jammed . | . . . Distress Signals . | . . . Times Spotted 48 | . 24 24 Peak Tracking Total 5 | . 3 5 Tactical Retreats 7 | . . 7 Traps | -11 -10 -10 ------- Run | Yrd Mat Sub Traps Triggered 1 | . 1 . Indirectly . | . . . Trap Hack Attempts . | . . . Triggered . | . . . Disarmed . | . . . Reprogrammed . | . . . Reused . | . . . Traps Extracted . | . . . Installed . | . . . Triggered . | . . . Machines | -11 -10 -10 ---------- Run | Yrd Mat Sub Machines Disabled 3 | . . 3 Max in Single Turn 3 | . . 3 Machines Repaired . | . . . Machines Dismantled . | . . . Machines Sabotaged . | . . . Overloaded Fab Kills . | . . . Hacking | -11 -10 -10 --------- Run | Yrd Mat Sub Machines Accessed 3 | . 3 . Terminals 2 | . 2 . Fabricators . | . . . Repair Stations 1 | . 1 . Recycling Units . | . . . Scanalyzers . | . . . Garrison Access . | . . . Total Hacks 6 | . 6 . Successful 4 | . 4 . Failed 2 | . 2 . Catastrophic . | . . . Database Lockouts . | . . . Manual 3 | . 3 . Terminals 3 | . 3 . Fabricators . | . . . Repair Stations 3 | . 3 . Recycling Units . | . . . Scanalyzers . | . . . Garrison Access . | . . . Terminal Hacks 2 | . 2 . Level Access Points 1 | . 1 . Branch Access Points 1 | . 1 . Fabricator Hacks . | . . . Repair Station Hacks 2 | . 2 . Scan Component 1 | . 1 . Repair 1 | . 1 . Recycling Unit Hacks . | . . . Scanalyzer . | . . . Garrison Access Hacks . | . . . Unauthorized Hacks . | . . . Terminals . | . . . Fabricators . | . . . Repair Stations . | . . . Recycling Units . | . . . Scanalyzers . | . . . Garrison Access . | . . . Data Cores Recovered . | . . . Used . | . . . Hacking Detections 3 | . 3 . Full Trace Events 1 | . 1 . Feedback Events . | . . . Feedback Blocked . | . . . Robot Schematics Acquired . | . . . Robots Built . | . . . Authchips . | . . . Time . | . . . Total Robot Build Rating . | . . . Part Schematics Acquired . | . . . Parts Built . | . . . Authchips . | . . . Time . | . . . Total Part Build Rating . | . . . Parts Repaired 1 | . 1 . Time 26 | . 26 . Parts Recycled . | . . . Recycled Matter . | . . . Retrieved Matter . | . . . Retrieved Components . | . . . Parts Scanalyzed . | . . . Part Schematics Acquired . | . . . Parts Damaged . | . . . Bothacking | -11 -10 -10 ------------ Run | Yrd Mat Sub Used RIF Installer . | . . . Robots Hacked . | . . . Non-combat . | . . . Combat . | . . . Robot Hacks Applied . | . . . Relay Couplers Released . | . . . Fabnet Peak Effective % . | . . . Robots Rewired . | . . . Allies Hacked . | . . . Hacks Repelled . | . . . Allies | -11 -10 -10 -------- Run | Yrd Mat Sub Total Allies . | . . . Largest Group . | . . . Highest-Rated Group . | . . . Highest-Rated Ally . | . . . Total Orders . | . . . Ally Attacks . | . . . Total Damage . | . . . Kills . | . . . Allies Corrupted . | . . . Allies Melted . | . . . Intel | -11 -10 -10 ------- Run | Yrd Mat Sub Robot Analysis Total . | . . . Derelict Logs Recovered 2 | . . 2 Drone Launches . | . . . Drone Recoveries . | . . . Exploration | -11 -10 -10 ------------- Run | Yrd Mat Sub Turns Passed 2526 | 235 704 1587 Spaces Moved 1499 | 82 354 1063 Core 3 | 3 . . Treads . | . . . Legs 1496 | 79 354 1063 Wheels . | . . . Hover . | . . . Flight . | . . . Fastest Speed 50 | 50 120 120 Average Speed 124 | 123 120 126 Slowest Speed 190 | 190 190 190 Overloaded Moves . | . . . Propulsion Burnouts . | . . . Robots Hopped . | . . . Cave-ins Triggered . | . . . Exploration Rate (%) 35 | 6 44 56 Regions Visited 2 Branch Regions 1 Pre-discovered Areas . | . . . Known Exits Taken . | . . . Unknown Exits Taken 2 | 1 1 . Scrap Searched 1 | . . 1 Spaces Dug . | . . . Terrain Destroyed 70 | . 13 57 Melee . | . . . Projectile . | . . . AOE 70 | . 13 57 Terrain Rammed . | . . . Walls Destroyed . | . . . Machines Disabled . | . . . Actions | -11 -10 -10 --------- Run | Yrd Mat Sub Total 1880 | 135 533 1212 Wait 124 | . 75 49 Move 1497 | 81 353 1063 Hop . | . . . Pick Up 27 | 4 11 12 Fast Attach 10 | 7 1 2 Attach 4 | . 1 3 Detach . | . . . Swap 27 | . 14 13 Drop 29 | . 16 13 Fire 149 | 43 53 53 Melee . | . . . Ram . | . . . Kick 13 | . 9 4 Crush . | . . . Escape Stasis . | . . . Rewire . | . . . Trap . | . . . Miscellaneous . | . . . Route ------- -11/Scrapyard -10/Materials (discovered 5 exits: Mat x3 / *Min / [*Sub]) -10/Subcaves (discovered 1 exit: [*Mat]) History --------- Turn | Location | Event 34 | -11/Scrapyard | Discovered new exit (range 15) 236 | -11/Scrapyard | Entered Materials 300 | -10/Materials | Build established: Mutant 366 | -10/Materials | Discovered new exit (range 13) 486 | -10/Materials | Identified exit to Materials 486 | -10/Materials | Identified exit to Mines 674 | -10/Materials | Repaired Assault Rifle 688 | -10/Materials | Build established: Scavenger-Mutant 936 | -10/Materials | Derelicts attacked the area 940 | -10/Materials | Entered Subcaves 941 | -10/Subcaves | Shifting Twisted Machinery released Sub. Machine Gun 1055 | -10/Subcaves | Shifting Twisted Machinery released Mak. Laser 1346 | -10/Subcaves | Learned Materials security intel 1371 | -10/Subcaves | Build established: Mutant 1507 | -10/Subcaves | Shifting Twisted Machinery released Mak. Light Armor Plating 1514 | -10/Subcaves | Discovered new exit (range 15) 1527 | -10/Subcaves | Shifting Twisted Machinery released Battle Cannon 1556 | -10/Subcaves | Learned Materials stockpile data 1652 | -10/Subcaves | Core integrity fell below 50% 1819 | -10/Subcaves | Build established: Derelict-Mutant 2168 | -10/Subcaves | Core integrity fell below 20% 2263 | -10/Subcaves | A swath of the cavern ceiling suddenly collapsed 2456 | -10/Subcaves | Build established: Mutant 2527 | -10/Subcaves | Destroyed by Autobeam Turret with Autobeam Last Messages --------------- 02272_ Kicked PF-3LU(R) out of the way. 02313_ ZM-EFU(R): "ECOKILL!" 02325_ ZM-EFU(R) knocked back. 02328_ ZM-EFU(R) destroyed. 02338_ Acquired 5 matter. 02469_ Acquired 1 matter. 02505_ Destroyed Flight Unit. 02505_ S-10 Pest destroyed. 02516_ Flight Unit fries itself beyond repair. 02516_ S-10 Pest destroyed. 02516_ Machine disabled. 02516_ Destroyed Flight Unit. 02516_ Machine disabled. 02517_ Lgt. Ion Engine fries itself beyond repair. 02519_ Destroyed Flight Unit. 02519_ S-10 Pest destroyed. 02522_ Lgt. Ion Engine fries itself beyond repair. 02523_ Lgt. Assault Rifle fries itself beyond repair. 02525_ Grenade Launcher destroyed. [Achievement: Achiever] Map ----- +----------------------------------------------------+ | ??????????????# ##### ##????????????????????? | | ??????????????# #?????????????????????? | | ??????????????## ##????????????????????? | | ???????????????## #????????????????????? | | ????????????????## #????????????????????? | | ?????????????????# ##????????????????????? | | ?????????????????# #?????????????????????? | | ?????????????????## ##????????????????????? | | ?????????????????## ##???????????????????? | | ?????????????????# #???????????????????? | | ????????????????## #???????????????????? | | ????????????????# #???????????????????? | | ???????????????# ###?????????????????? | | ???????????????## ######## ############?????## | | ????????????????##???????## #????## | | ????????????????????####### #???## | | ???????????????????## ## #???# | | ???????????????????# ####### | | ???????????????????# ## # | | ???????????????????# | | ???????????????????###### | | ???????????????????????## #### ## | | ???????????????????????# ## #??#### | | ???????????????????????# ### ## ????## | | ???????????????????????# ##?# #### ???## | | ??????????????????????## @ ## #?? # #???### | | ??????????????????????# ## ?? ? ????? | | ??????????????????????# # ?? ? #???? | | ????????????????????? # #??? ?????? | | ???????????????????? % ####???? ?????? | | ??????????????????? [ # ##?????????????? | | ?????????????????? ## #??????????# #?? | | ????????????????? t = & #?##?????????? ? | | ???????????????# # % ???????????? | | ???????????????# ## && #??????????? | | ???????????????# ?## # ??????????? | | ???????????????### # ???#? ^ ?????????? | | ?????????????????####??????## " #?????????? | | ????????????????????????????? " #?????????????# | | ????????????????????????????? ???????????????## | | ?????????????????????????????????????????????????? | | ?????????????????????????????????????????????????? | | ?????????????????????????????????????????????????? | | ?????????????????????????????????????????????????? | | ?????????????????????????????????????????????????? | | ?????????????????????????????????????????????????? | | ?????????????????????????????????????????????????? | | ?????????????????????????????????????????????????? | | ?????????????????????????????????????????????????? | | ?????????????????????????????????????????????????? | +----------------------------------------------------+ Best States ------------- Heat Dissipation 25 Energy Generation 10 Energy Capacity 250 Matter Stores 300 Matter Capacity 300 Sight Range 21 Terrain Scan Density 10 Armor Coverage 100 Evasion (%) 55 Item Schematics ----------------- None Robot Schematics ------------------ None Fabricated ------------ Nothing Alien Tech Used ----------------- None Achievements -------------- Achiever Oops Challenges ------------ None Game ------ Seed NavigationSpliceStatue Manual? 0 Play Time 00:25:40 Cumulative 24.8 hours Start 2024.09.29 @ 17:31:43 End 2024.09.29 @ 17:57:13 Sessions 1 Manual Loads 0 Difficulty Rogue Special Mode None Game No. 11 Rogue 11 Adventurer 0 Explorer 0 Win Type - Total 2 Types 2/0/0/0/0/0/0/0/0 Lore% 20 Gallery% 18 Achievement% 25 Wizard Run 0 Options --------- Layout 0 ASCII 0 Keyboard 0 Movement Vi Keybinds 0 Fullscreen 2 Font 36/X11++ Map View 76x50 Zoom Use 0% Tactical HUD 1 Map Filters NONE Filters NONE Steam 1 RUN: 9679628e-cf01-4873-92e6-6a81fdb6cb70